bitfinex/quotes_ETHUSD_20260103
["timestamp","ask_amount","ask_price","bid_price","bid_amount"]
[1767437544417,2.34693989,3102.1,3101.5,0.001]
[1767437546316,2.34693989,3101.9,3101.5,0.001]
[1767437546700,2.90400654,3101.9,3101.5,0.001]
[1767437548519,2.34693989,3101.8,3101.5,0.001]
[1767437555805,2.4031179,3102.1,3101.5,0.001]
[1767437558033,2.4011179,3102.0,3101.5,0.001]
[1767437560609,0.002,3102.1,3101.5,2.44508383]
[1767437562246,0.002,3102.1,3101.6,3.22414237]
[1767437564137,0.002,3102.1,3101.6,5.6682262]
[1767437565207,0.002,3102.1,3101.7,2.44408383]
[1767437566041,0.002,3102.1,3101.7,5.66809903]
[1767437574735,0.002,3102.1,3101.7,6.55742257]
[1767437576145,0.002,3102.1,3101.8,2.44408383]
[1767437576720,0.002,3102.1,3101.9,3.22383055]
[1767437583438,0.002,3102.1,3101.8,5.66798416]
[1767437584026,0.002,3102.1,3101.8,3.22390033]
[1767437584222,0.002,3102.1,3101.8,0.73372396]
[1767437585355,0.002,3102.1,3101.8,3.95765763]
[1767437585928,0.002,3102.1,3101.8,0.73372396]
[1767437587257,0.002,3102.1,3101.8,3.95764688]
[1767437594659,0.002,3102.1,3101.6,0.001]
[1767437596460,0.002,3102.1,3101.6,2.32295378]
[1767437599081,0.002,3102.1,3101.7,3.22403843]
[1767437604675,0.002,3102.1,3101.7,6.44807686]
[1767437605383,0.002,3102.1,3101.7,3.22403843]
[1767437605670,0.002,3102.1,3101.7,4.10125006]
[1767437608902,0.00080168,3102.2,3101.8,3.22389584]
[1767437609190,2.29690658,3102.2,3101.7,4.10123404]
[1767437609369,2.29690658,3102.2,3101.8,3.223913]
[1767437613388,2.29890658,3102.2,3101.8,6.44784748]
[1767437613594,0.00280168,3102.2,3101.9,0.73250591]
[1767437614588,0.00280168,3102.2,3101.9,3.95625973]
[1767437623488,0.00280168,3102.2,3101.9,0.73250591]
[1767437623699,2.38502328,3102.2,3101.8,3.22390168]
[1767437625196,2.38502328,3102.2,3101.9,3.22380366]
[1767437626707,2.38502328,3102.2,3101.6,6.44928474]
[1767437629321,2.38502328,3102.2,3101.8,0.001]
[1767437645423,0.00280168,3102.2,3101.8,2.25325584]
[1767437645586,0.00280168,3102.2,3101.8,2.47868142]
[1767437645787,0.00280168,3102.2,3101.9,3.22383055]
[1767437647706,0.00280168,3102.2,3101.9,5.47608639]
[1767437652530,0.00280168,3102.2,3101.9,5.47708639]
[1767437655428,0.00280168,3102.2,3101.9,3.22483055]
[1767437661205,0.00280168,3102.2,3101.9,0.001]
[1767437665037,2.28755604,3102.2,3101.9,0.001]
[1767437674557,0.00280168,3102.2,3101.9,0.001]
[1767437680550,2.37212891,3102.2,3101.9,0.001]
[1767437685950,0.00280168,3102.2,3101.9,0.001]
[1767437693660,2.37212891,3102.2,3101.9,0.001]
[1767437693864,2.93167371,3102.2,3101.9,0.001]
[1767437695170,3.78588203,3102.2,3101.9,0.001]
[1767437695375,2.36932723,3102.1,3101.9,0.001]
[1767437696086,2.36932723,3102.1,3101.6,0.001]
[1767437697977,5.59305385,3102.0,3101.6,0.001]
[1767437698140,2.92863262,3101.9,3101.6,0.001]
[1767437698537,2.92863262,3101.9,3101.5,0.001]
[1767437700063,6.15253568,3101.9,3101.5,0.001]
[1767437700449,2.36851626,3101.8,3101.5,0.001]
[1767437701850,2.36851626,3101.8,3101.3,0.00080208]
[1767437702049,2.36851626,3101.4,3101.0,0.001]
[1767437702565,2.36851626,3101.4,3100.5,0.847]
[1767437702566,2.72205877,3101.2,3100.2,0.001]
[1767437702870,0.00080032,3099.9,3099.8,0.0970701]
[1767437703046,0.01731157,3100.8,3099.9,2.26047165]
[1767437703363,0.846,3100.5,3099.9,2.26047165]
[1767437703542,0.846,3100.5,3099.5,0.0008004]
[1767437703543,2.27778202,3100.1,3099.5,0.0008004]
[1767437703733,2.7777661,3100.0,3099.5,0.0008004]
[1767437704240,6.00364979,3100.0,3099.5,0.0008004]
[1767437705451,2.27778202,3099.9,3099.5,0.0008004]
[1767437706052,3.22601458,3099.8,3099.5,0.0008004]
[1767437706769,2.36851626,3099.7,3099.1,0.0970701]
[1767437706973,2.36851626,3099.5,3098.6,2.26047165]
[1767437708268,2.36851626,3099.3,3098.7,2.26047165]
[1767437709380,5.59487753,3099.5,3098.7,2.26047165]
[1767437709587,3.2260356,3099.8,3098.7,2.26047165]
[1767437709744,4.05235281,3099.8,3098.9,2.26047165]
[1767437710245,2.36851626,3099.7,3098.9,2.26047165]
[1767437710447,5.59463491,3099.7,3098.9,2.26047165]
[1767437710876,8.82075356,3099.7,3098.9,2.26047165]
[1767437711847,2.36851626,3099.6,3098.7,2.26047165]
[1767437712078,2.36851626,3099.5,3098.7,5.48763104]
[1767437712474,5.59491802,3099.5,3098.7,5.48763104]
[1767437715178,1.04930708,3099.6,3098.8,2.26047165]
[1767437715179,3.22623506,3099.6,3098.8,2.26047165]
[1767437716375,5.59463491,3099.7,3098.9,3.22695149]
[1767437716656,6.74084123,3099.7,3098.9,5.48742314]
[1767437717754,9.96695988,3099.7,3098.9,5.48742314]
[1767437718053,9.96695988,3099.7,3099.0,2.26047165]
[1767437718671,0.001,3099.5,3099.0,2.26047165]
[1767437721483,2.36951626,3099.5,3098.7,2.26047165]
[1767437721659,2.36951626,3099.5,3098.5,6.4575372]
[1767437721858,2.36951626,3099.5,3098.6,0.64575372]
[1767437722251,2.36951626,3099.5,3098.7,2.26047165]
[1767437722507,0.001,3099.5,3098.7,2.26047165]
[1767437722655,0.001,3099.5,3098.9,2.26047165]
[1767437722856,0.001,3099.5,3098.6,2.26047165]
[1767437722857,2.36951626,3099.5,3098.6,2.26047165]
[1767437723066,3.36631225,3099.5,3098.6,2.26047165]
[1767437723778,3.36631225,3099.5,3098.6,5.48769007]
[1767437723996,2.36851626,3099.4,3098.7,2.26047165]
[1767437724752,3.22653502,3099.3,3098.7,2.26047165]
[1767437725959,5.59505128,3099.3,3098.7,2.26047165]
[1767437732093,3.22646927,3099.4,3098.8,2.41088974]
[1767437733089,6.62212344,3099.5,3098.9,2.41088974]
[1767437733385,4.22416383,3099.5,3098.9,2.09620097]
[1767437733604,3.22736784,3099.5,3098.9,2.09620097]
[1767437733771,0.001,3099.5,3098.9,2.09620097]
[1767437734168,3.22732754,3099.5,3098.9,2.09620097]
[1767437735591,0.001,3099.5,3098.9,5.32308556]
[1767437736495,0.001,3099.5,3099.0,2.41088974]
[1767437738474,2.39895961,3099.5,3098.8,3.22702139]
[1767437739169,2.39895961,3099.5,3098.8,5.63791113]
[1767437739370,0.001,3099.5,3099.0,2.41088974]
[1767437739571,0.001,3099.5,3099.1,2.41088974]
[1767437739771,0.001,3099.5,3099.1,1.99132118]
[1767437742282,0.001,3099.5,3098.9,5.63980379]
[1767437742577,2.39895961,3099.5,3098.9,3.22891405]
[1767437744272,2.39895961,3099.5,3098.9,5.63980379]
[1767437745313,0.001,3099.5,3099.0,2.41088974]
[1767437750309,2.39895961,3099.5,3098.9,0.002]
[1767437750603,2.39795961,3099.3,3098.9,0.002]
[1767437752890,5.6245104,3099.3,3098.9,0.002]
[1767437755182,5.6255104,3099.3,3098.9,0.002]
[1767437758210,2.39895961,3099.3,3098.9,0.002]
[1767437759110,5.62551919,3099.3,3098.9,0.002]
[1767437759609,2.39895961,3099.3,3098.9,0.002]
[1767437761616,0.001,3099.3,3099.0,2.49994165]
[1767437761814,0.001,3099.5,3098.9,0.64763064]
[1767437761815,0.001,3099.5,3099.2,2.49994165]
[1767437762004,0.0008004,3099.9,3099.4,2.49994165]
[1767437764023,2.46021246,3099.9,3099.3,3.22645028]
[1767437764386,2.46021246,3099.9,3099.4,3.22641911]
[1767437766129,2.46021246,3099.9,3099.3,5.72647667]
[1767437766293,0.0008004,3099.9,3099.3,5.72647667]
[1767437768208,0.0008004,3099.9,3099.3,6.70648767]
[1767437769118,0.0008004,3099.9,3099.4,5.72634433]
[1767437770118,0.0018004,3099.9,3099.4,5.72634433]
[1767437779521,0.0018004,3099.9,3099.4,2.49994165]
[1767437779721,0.0018004,3099.9,3099.3,3.22852692]
[1767437779899,2.46121246,3099.9,3099.3,3.22852692]
[1767437781330,2.46121246,3099.9,3099.3,0.002]
[1767437782402,5.68713398,3099.9,3099.3,0.002]
[1767437782928,2.45941206,3099.8,3099.3,0.002]
[1767437787334,0.0018004,3099.9,3099.4,2.49994165]
[1767437789937,0.0018004,3099.9,3099.4,5.72629068]
[1767437796643,0.0018004,3099.9,3099.5,2.41622996]
[1767437799845,0.0018004,3099.9,3099.5,5.64252868]
[1767437801353,0.0018004,3099.9,3099.5,5.64452868]
[1767437809352,0.0018004,3099.9,3099.5,5.64455163]
[1767437811358,0.0018004,3099.9,3099.5,3.22832167]
[1767437811559,0.0018004,3099.9,3099.5,0.002]
[1767437818667,0.0018004,3099.9,3099.5,5.6445273]
[1767437823819,0.0018004,3099.9,3099.5,0.002]
[1767437823976,0.0018004,3099.9,3099.5,3.22832632]
[1767437825508,2.2683551,3099.9,3099.5,0.002]
[1767437830287,2.2665547,3100.2,3099.5,0.002]
[1767437830493,2.2665547,3100.1,3099.5,2.45523596]
[1767437830688,2.2665547,3100.5,3099.7,2.45243548]
[1767437830912,0.846,3100.3,3099.7,2.45243548]
[1767437833217,2.2665547,3100.5,3099.8,5.67845006]
[1767437833413,2.2665547,3100.5,3099.9,2.45243548]
[1767437833911,0.847,3100.6,3099.9,2.45243548]
[1767437835398,3.1135547,3100.6,3099.9,5.67824271]
[1767437838037,2.2665547,3100.5,3099.9,2.45243548]
[1767437838215,2.2665547,3100.5,3099.8,3.22597449]
[1767437839927,2.2665547,3100.5,3099.9,3.2258882]
[1767437842247,2.2665547,3100.5,3099.6,2.45243548]
[1767437842411,2.2665547,3100.5,3099.7,0.89078896]
[1767437842737,2.2665547,3100.5,3099.7,3.34322444]
[1767437843832,2.2675547,3100.5,3099.8,3.22601458]
[1767437844630,2.2675547,3100.5,3099.8,6.45202916]
[1767437845333,2.2675547,3100.5,3099.8,8.90446464]
[1767437845532,2.2675547,3100.5,3099.8,9.88399]
[1767437846009,2.2675547,3100.5,3099.8,6.65797542]
[1767437848342,2.2675547,3100.5,3099.8,9.88399]
[1767437860753,2.2675547,3100.5,3099.8,9.88599]
[1767437877694,2.2675547,3100.5,3099.8,8.90646464]
[1767437879490,2.2675547,3100.5,3099.9,2.33944488]
[1767437882367,2.2675547,3100.5,3100.0,3.22580645]
[1767437882559,2.2675547,3100.5,3099.9,5.56530744]
[1767437882760,2.2675547,3100.5,3099.5,0.00280048]
[1767437882761,2.47009305,3100.4,3099.5,0.00280048]
[1767437882977,2.47009305,3099.8,3099.2,3.22660475]
[1767437883388,2.47009305,3099.8,3099.0,2.26538363]
[1767437883797,2.47009305,3099.8,3099.0,5.49218665]
[1767437884375,2.47009305,3099.8,3099.1,3.22673242]
[1767437885078,2.47009305,3099.7,3099.1,3.22673242]
[1767437887404,5.69624756,3099.7,3099.1,3.22673242]
[1767437887690,5.69624756,3099.7,3099.0,5.49219041]
[1767437891202,5.69724756,3099.7,3099.0,5.49219041]
[1767437898112,5.69724756,3099.7,3099.0,2.26538363]
[1767437899889,5.69724756,3099.7,3099.0,5.49220442]
[1767437904029,5.69724756,3099.7,3099.1,2.26538363]
[1767437904230,0.001,3099.7,3099.1,2.26538363]
[1767437906129,0.001,3099.7,3099.1,5.49207381]
[1767437909222,0.89338633,3099.7,3099.1,5.49207381]
[1767437913703,0.89338633,3099.7,3099.2,2.29293421]
[1767437914107,0.89338633,3099.7,3099.3,2.29493421]
[1767437914338,0.001,3099.7,3099.3,2.29493421]
[1767437914911,0.001,3099.7,3099.3,0.002]
[1767437915219,3.22712332,3099.7,3099.3,0.002]
[1767437915859,2.34902344,3099.6,3099.3,0.002]
[1767437919539,5.57531801,3099.6,3099.3,0.002]
[1767437919738,0.88024413,3099.5,3099.3,0.002]
[1767437921537,3.22926757,3099.5,3099.3,0.002]
[1767437922733,6.45560288,3099.5,3099.3,0.002]
[1767437923415,2.34902344,3099.4,3098.9,0.002]
[1767437923917,3.22626883,3099.6,3098.9,2.29493421]
[1767437925111,3.22626883,3099.6,3099.3,0.002]
[1767437925311,0.88024184,3099.5,3099.3,0.002]
[1767437926942,4.10657649,3099.5,3099.3,0.002]
[1767437927716,6.45559993,3099.5,3098.9,0.002]
[1767437928234,2.34902344,3099.4,3098.9,0.002]
[1767437928430,2.34902344,3099.4,3098.6,3.22924517]
[1767437928431,2.34902344,3099.4,3098.6,2.29493421]
[1767437928634,2.34902344,3099.2,3098.6,0.002]
[1767437928834,2.34902344,3099.2,3098.6,2.29493421]
[1767437929817,3.22674324,3099.1,3098.6,0.002]
[1767437930738,2.34902344,3099.0,3098.6,0.002]
[1767437931521,0.94478666,3099.1,3098.6,2.29493421]
[1767437931716,5.5756985,3099.2,3098.6,2.29493421]
[1767437931717,3.22667506,3099.2,3098.6,2.29493421]
[1767437931922,3.2265815,3099.3,3098.6,2.29493421]
[1767437933046,6.45287138,3099.4,3098.6,2.29493421]
[1767437933227,0.96488948,3099.3,3098.6,2.29493421]
[1767437934252,3.28231095,3099.3,3098.6,2.29493421]
[1767437934919,2.31742147,3099.2,3098.6,0.002]
[1767437935322,2.31742147,3099.1,3098.6,0.002]
[1767437936651,2.31742147,3098.6,3097.6,3.2302858]
[1767437936829,0.00080104,3098.9,3097.8,2.37942275]
[1767437937027,0.00080104,3098.9,3097.9,2.38022371]
[1767437937028,3.16442147,3098.8,3097.9,2.38022371]
[1767437937459,2.31742147,3098.8,3097.9,2.38022371]
[1767437937673,7.30131954,3098.7,3097.9,2.38022371]
[1767437937831,2.98458338,3098.6,3097.9,2.38022371]
[1767437938153,2.31742147,3098.5,3097.9,2.38022371]
[1767437939759,8.78832322,3098.4,3097.9,0.00080096]
[1767437940059,2.33337874,3098.3,3097.9,0.00080096]
[1767437940558,6.45494448,3098.4,3097.9,2.38349844]
[1767437941056,3.22747224,3098.4,3097.9,2.38349844]
[1767437941565,7.39888858,3098.4,3097.9,0.00280096]
[1767437941860,2.33337874,3098.3,3097.9,0.00280096]
[1767437944531,3.22768058,3098.2,3097.9,0.00280096]
[1767437945258,3.22768058,3098.2,3096.6,2.38469748]
[1767437945259,0.1684,3096.9,3096.6,2.38469748]
[1767437945456,0.847,3097.3,3096.8,2.38469748]
[1767437945859,0.847,3097.3,3096.6,0.002]
[1767437946264,0.00080056,3097.1,3096.6,0.002]
[1767437946465,5.56230996,3097.0,3096.6,0.002]
[1767437947265,8.79124118,3097.0,3096.6,0.002]
[1767437947663,5.56230996,3097.0,3096.6,0.002]
[1767437950269,2.33337874,3096.9,3096.6,0.002]
[1767437951367,3.22893122,3097.0,3096.6,0.002]
[1767437951575,5.88114419,3097.1,3096.6,0.002]
[1767437956685,9.11099115,3097.1,3096.6,0.002]
[1767437957084,5.88214419,3097.1,3096.6,0.002]
[1767437959180,3.23064752,3097.1,3096.6,2.06985034]
[1767437960686,0.00180056,3097.1,3096.6,2.06985034]
[1767437963362,2.3351793,3097.1,3096.6,0.002]
[1767437965592,5.56404261,3097.1,3096.6,0.002]
[1767437967789,3.22830578,3097.6,3096.9,2.06785034]
[1767437967967,5.56168452,3097.6,3096.9,2.06785034]
[1767437968783,7.26168452,3097.6,3096.9,2.06785034]
[1767437969160,10.4899903,3097.6,3096.9,2.06785034]
[1767437970385,11.53906939,3097.6,3096.9,2.06785034]
[1767437970776,0.001,3097.1,3096.9,2.06785034]
[1767437974075,0.001,3097.1,3097.0,2.06785034]
[1767437976590,0.001,3097.1,3096.8,5.29696356]
[1767437976985,0.001,3097.1,3096.8,2.06785034]
[1767437977290,0.001,3097.1,3096.8,2.65084903]
[1767437979900,0.001,3097.1,3096.8,5.87998468]
[1767437983283,0.001,3097.1,3096.8,2.65084903]
[1767437983519,0.001,3097.1,3096.7,0.00080064]
[1767437984319,0.001,3097.1,3096.8,0.002]
[1767437989091,2.30018457,3097.1,3096.8,0.002]
[1767437990010,2.29918457,3097.0,3096.8,0.002]
[1767437992109,3.22983929,3097.1,3096.8,0.002]
[1767437992110,0.001,3097.1,3096.8,2.06985034]
[1767437992625,0.001,3097.1,3096.8,2.27711544]
[1767437992925,0.001,3097.1,3096.8,2.06985034]
[1767437994215,0.001,3097.1,3096.8,5.29891868]
[1767437995614,0.001,3097.1,3096.8,3.23106834]
[1767438000918,0.00080056,3097.7,3096.8,3.23106834]
[1767438001114,0.00080056,3097.7,3097.1,2.06785034]
[1767438001426,0.00080056,3097.7,3096.8,9.19100223]
[1767438001427,0.00080056,3097.7,3097.2,2.27463537]
[1767438002202,2.43656316,3097.7,3097.0,6.45786244]
[1767438002407,0.00080056,3097.7,3097.1,2.06785034]
[1767438003908,2.43656316,3097.7,3097.1,2.06785034]
[1767438004293,2.43656316,3097.7,3097.1,5.29667717]
[1767438004494,2.43656316,3097.7,3096.9,3.2290204]
[1767438004698,2.4357626,3097.5,3096.9,3.2290204]
[1767438005115,2.4357626,3097.5,3096.8,3.23111178]
[1767438006225,2.4357626,3097.5,3096.9,3.22901673]
[1767438006420,2.4357626,3097.5,3096.8,0.002]
[1767438010342,3.79479231,3097.6,3096.9,2.06785034]
[1767438010515,0.56646605,3097.6,3096.9,2.06785034]
[1767438010918,0.847,3097.5,3096.9,2.06785034]
[1767438011937,3.22831556,3097.6,3096.9,2.06785034]
[1767438012145,0.847,3097.5,3096.9,2.06785034]
[1767438012641,0.847,3097.5,3097.0,2.06785034]
[1767438015351,0.848,3097.5,3097.0,2.06785034]
[1767438018153,0.848,3097.5,3096.8,0.002]
[1767438018154,6.51217896,3097.5,3096.8,5.29894212]
[1767438018319,7.21788077,3097.5,3096.8,5.29894212]
[1767438020264,6.51217896,3097.5,3096.8,5.29894212]
[1767438024570,6.51217896,3097.5,3096.8,2.06985034]
[1767438024865,9.74059532,3097.5,3096.8,2.06985034]
[1767438025556,6.51217896,3097.5,3096.8,5.29898695]
[1767438026266,2.4357626,3097.4,3096.8,3.23113661]
[1767438026641,2.4357626,3097.4,3096.8,2.06985034]
[1767438026842,5.66430949,3097.4,3096.8,2.06985034]
[1767438027439,2.4357626,3097.3,3096.8,0.002]
[1767438028964,3.22854689,3097.4,3096.8,0.002]
[1767438029167,5.66430949,3097.4,3096.8,2.06985034]
[1767438029650,2.33448339,3097.3,3096.8,0.002]
[1767438030362,2.33319195,3097.3,3096.8,0.002]
[1767438030662,2.33319195,3097.3,3096.8,0.64834926]
[1767438032075,4.07643929,3097.5,3096.8,3.87745021]
[1767438032368,4.07643929,3097.5,3096.8,5.94659199]
[1767438032545,4.07643929,3097.5,3096.9,2.06914178]
[1767438034747,4.07643929,3097.5,3096.9,5.29817136]
[1767438035478,0.848,3097.5,3097.0,2.06914178]
[1767438035678,4.07642383,3097.5,3097.0,2.06914178]
[1767438036465,0.001,3097.5,3097.1,2.06914178]
[1767438036668,0.001,3097.5,3097.0,3.2289141]
[1767438037864,0.001,3097.5,3097.0,5.29805588]
[1767438038163,0.001,3097.5,3097.1,0.61510767]
[1767438038369,0.001,3097.5,3097.1,2.06914178]
[1767438047475,0.001,3097.5,3097.1,5.29792236]
[1767438047775,0.001,3097.5,3097.1,2.06914178]
[1767438049893,0.001,3097.5,3097.0,0.002]
[1767438052297,2.30705959,3097.5,3097.0,0.002]
[1767438055401,5.53547972,3097.5,3097.0,0.002]
[1767438059907,2.44571745,3097.4,3097.0,0.002]
[1767438061497,0.001,3097.5,3097.0,0.002]
[1767438062171,0.001,3097.5,3097.0,2.07114178]
[1767438062376,0.001,3097.5,3097.1,2.27625596]
[1767438065809,0.001,3097.5,3097.1,5.50504818]
[1767438066910,0.001,3097.5,3097.2,2.06914178]
[1767438068808,0.001,3097.5,3097.2,5.29784066]
[1767438069009,0.00180056,3097.7,3097.3,2.06914178]
[1767438069192,0.00180056,3097.7,3097.4,0.85265634]
[1767438070208,0.001,3097.5,3097.4,0.85265634]
[1767438071314,0.001,3097.5,3097.4,4.08117057]
[1767438071607,0.00180056,3097.7,3097.4,6.15031235]
[1767438072017,0.00180056,3097.7,3097.4,2.92179812]
[1767438072209,0.00180056,3097.7,3097.5,0.61503728]
[1767438075521,2.44571745,3098.2,3097.5,0.61503728]
[1767438075698,2.44571745,3098.2,3097.4,6.15026878]
[1767438076223,2.44571745,3098.2,3097.5,3.22838302]
[1767438077820,2.44571745,3098.2,3097.5,5.2975248]
[1767438078010,5.6733997,3098.2,3097.5,5.2975248]
[1767438078212,2.44571745,3098.2,3097.5,6.23546534]
[1767438078601,0.001,3097.7,3097.5,6.23546534]
[1767438078806,5.67339907,3098.2,3097.5,6.23546534]
[1767438081295,2.44571745,3098.2,3097.5,6.23546534]
[1767438081615,2.44571745,3098.2,3097.6,2.06914178]
[1767438081929,2.44571745,3098.2,3097.6,3.10079631]
[1767438083923,2.44571745,3098.2,3097.6,6.32910185]
[1767438085230,2.44571745,3098.2,3097.6,3.10079631]
[1767438086329,5.67348585,3098.2,3097.6,1.03165453]
[1767438086530,5.67448585,3098.2,3097.6,1.03165453]
[1767438087332,2.44571745,3098.1,3097.6,1.03165453]
[1767438087540,2.44571745,3098.0,3097.5,0.002]
[1767438088842,2.44571745,3097.8,3097.5,0.002]
[1767438089008,2.44571745,3097.8,3097.3,0.00080064]
[1767438089211,2.44571745,3097.6,3097.0,0.002]
[1767438089429,2.44571745,3097.4,3097.0,0.002]
[1767438091037,2.45907613,3097.2,3097.0,0.002]
[1767438092247,3.22882696,3097.1,3097.0,0.002]
[1767438092423,5.68790309,3097.1,3097.0,0.002]
[1767438092632,6.57955525,3097.1,3097.0,0.002]
[1767438096129,3.35072829,3097.1,3097.0,0.002]
[1767438096329,6.57955525,3097.1,3097.0,0.002]
[1767438097448,3.35072829,3097.1,3097.0,0.002]
[1767438098254,6.57955525,3097.1,3097.0,0.002]
[1767438098951,2.45907613,3097.0,3096.6,0.002]
[1767438099155,2.45907613,3096.9,3096.6,0.002]
[1767438099821,2.45907613,3096.8,3096.3,0.002]
[1767438100323,2.45907613,3096.6,3096.3,0.002]
[1767438103733,3.30607613,3096.8,3096.3,0.002]
[1767438103939,3.11703166,3097.0,3096.3,2.07394242]
[1767438104141,0.84780064,3097.1,3096.3,2.28141674]
[1767438104325,0.84780064,3097.1,3096.5,2.07194242]
[1767438104326,0.00180064,3097.1,3096.5,2.07194242]
[1767438106359,0.00180064,3097.1,3096.6,5.30129073]
[1767438107251,0.00180064,3097.1,3096.7,2.07194242]
[1767438107950,4.11919333,3097.7,3097.0,2.07194242]
[1767438107951,5.68812497,3097.7,3097.0,2.07194242]
[1767438108123,6.53512497,3097.7,3097.0,2.07194242]
[1767438108558,2.45987677,3097.7,3097.0,2.27913666]
[1767438108728,3.30687677,3097.7,3097.0,2.27913666]
[1767438108924,6.53508644,3097.7,3097.0,2.27913666]
[1767438109765,6.53508644,3097.7,3097.0,5.50797945]
[1767438110270,2.45907613,3097.6,3097.0,2.27913666]
[1767438110475,2.45907613,3097.6,3096.8,5.30104245]
[1767438110773,2.45907613,3097.6,3096.8,3.22910003]
[1767438111547,2.45907613,3097.6,3096.7,3.23002151]
[1767438111748,2.45907613,3097.4,3097.0,0.002]
[1767438114978,2.45907613,3097.4,3096.7,0.00080072]
[1767438114979,2.45907613,3097.3,3096.7,0.00080072]
[1767438115168,2.45907613,3097.1,3096.7,0.00080072]
[1767438117048,2.45907613,3096.9,3096.7,0.00080072]
[1767438119160,2.45907613,3096.8,3096.7,0.00080072]
[1767438120082,2.45907613,3096.8,3096.6,0.002]
[1767438120288,2.85926611,3096.7,3096.6,0.002]
[1767438120450,2.85926611,3096.7,3096.3,0.002]
[1767438122168,0.00180072,3097.1,3096.3,0.002]
[1767438122169,0.847,3096.9,3096.3,2.07394242]
[1767438123158,0.847,3096.9,3096.3,5.303552]
[1767438123898,2.29044816,3096.8,3096.3,3.23160958]
[1767438125282,2.29044816,3096.8,3096.3,0.002]
[1767438126692,2.29044816,3096.7,3096.3,0.002]
[1767438129086,2.29044816,3096.6,3096.3,0.002]
[1767438133193,3.13744816,3096.9,3096.3,0.002]
[1767438134208,6.36650095,3096.9,3096.3,0.002]
[1767438134504,3.13744816,3096.9,3096.3,0.002]
[1767438135434,2.29044816,3096.8,3096.3,0.002]
[1767438137611,5.51958946,3096.8,3096.3,0.002]
[1767438137909,2.29044816,3096.8,3096.3,0.002]
[1767438140136,5.5195894,3096.8,3096.3,0.002]
[1767438140282,2.29044816,3096.9,3096.3,0.002]
[1767438143120,6.47920695,3096.9,3096.3,3.2316612]
[1767438143819,3.25015366,3096.9,3096.3,3.2316612]
[1767438144002,2.29044816,3096.9,3096.3,3.2316612]
[1767438145905,2.29144816,3096.9,3096.3,3.2316612]
[1767438150617,2.26168292,3096.8,3096.3,3.2316612]
[1767438153201,5.49083988,3096.8,3096.3,0.002]
[1767438153419,2.26168292,3096.7,3096.3,0.002]
[1767438158000,2.26168292,3096.6,3096.3,0.002]
[1767438158197,2.26168292,3096.6,3096.0,3.22993681]
[1767438158396,2.26248372,3096.6,3096.0,3.22993681]
[1767438159008,2.26248372,3096.6,3095.9,3.23284153]
[1767438159416,2.26248372,3096.6,3095.9,0.00280088]
[1767438159742,2.26168292,3096.2,3095.9,0.00280088]
[1767438165024,2.26168292,3096.1,3095.9,0.00280088]
[1767438165216,2.26168292,3096.1,3095.7,0.002]
[1767438165465,2.2624838,3096.3,3095.7,0.002]
[1767438165619,2.2624838,3096.3,3095.7,2.07674322]
[1767438165937,2.2624838,3096.3,3095.7,2.28461754]
[1767438166745,2.2624838,3096.3,3095.7,0.20987432]
[1767438166954,0.00080088,3096.3,3095.8,5.30492604]
[1767438168015,2.2624838,3096.3,3095.8,3.23018282]
[1767438168321,2.2624838,3096.3,3095.7,3.23227325]
[1767438168659,2.48873218,3096.3,3095.7,3.23227325]
[1767438169151,2.48873218,3096.3,3095.7,0.002]
[1767438171345,2.26168292,3096.2,3095.7,0.002]
[1767438174450,0.00080088,3096.3,3095.7,2.07674322]
[1767438174654,0.0018008,3096.6,3096.1,2.07474322]
[1767438175858,0.001,3096.9,3096.4,2.07474322]
[1767438176230,0.001,3096.9,3096.4,5.30426102]
[1767438179455,0.001,3096.9,3096.5,2.07474322]
[1767438179635,0.001,3096.9,3096.7,2.07474322]
[1767438179837,0.00180072,3097.1,3096.7,2.07474322]
[1767438180745,2.43776353,3097.1,3096.6,4.0826299]
[1767438181249,0.001,3096.9,3096.6,4.0826299]
[1767438184357,0.001,3096.9,3096.6,0.85338179]
[1767438184562,0.001,3096.9,3096.4,3.22955306]
[1767438184732,0.001,3096.9,3096.6,3.22933931]
[1767438185760,0.001,3096.9,3096.4,6.4591138]
[1767438185961,0.001,3096.9,3096.4,8.53385702]
[1767438187369,2.43696281,3096.9,3096.4,6.4591138]
[1767438187571,2.43696281,3096.9,3096.5,0.64611138]
[1767438187737,0.001,3096.9,3096.6,3.22934831]
[1767438188470,0.001,3096.9,3096.6,6.45869662]
[1767438189168,0.001,3096.9,3096.6,8.53343984]
[1767438189644,0.001,3096.9,3096.7,2.07474322]
[1767438189850,0.00180072,3097.1,3096.8,2.9280872]
[1767438190249,0.00180072,3097.1,3096.8,0.85334398]
[1767438191035,2.43696281,3097.4,3096.8,0.85334398]
[1767438191036,0.001,3097.4,3096.9,2.07474322]
[1767438191867,2.43776345,3097.7,3096.9,2.07474322]
[1767438192067,0.00180064,3097.7,3097.1,2.07474322]
[1767438192250,0.00180064,3097.7,3097.2,2.07474322]
[1767438192570,2.43776345,3097.7,3097.0,1.21175074]
[1767438193942,2.43776345,3097.7,3097.1,6.45765392]
[1767438194155,2.43776345,3097.7,3097.2,0.76694047]
[1767438195571,2.43776345,3097.7,3097.1,3.22882696]
[1767438198339,2.43596281,3097.4,3096.7,0.0008008]
[1767438199254,2.43596281,3097.4,3096.7,2.07554402]
[1767438199966,3.23002726,3097.7,3096.7,2.07554402]
[1767438199967,2.43776345,3097.7,3096.7,2.07554402]
[1767438200269,2.43596281,3097.6,3096.9,2.07474322]
[1767438202886,2.43596281,3097.6,3097.0,8.53260566]
[1767438203059,0.00180064,3097.7,3097.0,5.30367444]
[1767438203260,2.43776345,3097.7,3097.0,5.30367444]
[1767438203884,2.43596281,3097.6,3097.0,5.30367444]
[1767438204288,2.43596281,3097.6,3097.0,3.22893122]
[1767438205084,2.43596281,3097.6,3097.0,0.002]
[1767438206275,2.43596281,3097.5,3097.0,0.002]
[1767438207275,2.43596281,3097.3,3097.0,0.002]
[1767438209095,7.07790119,3097.6,3097.0,0.002]
[1767438209598,2.43596281,3097.5,3097.0,0.002]
[1767438210194,4.07705052,3097.7,3097.0,0.002]
[1767438210398,4.07705052,3097.7,3097.0,2.07674322]
[1767438210692,7.34325963,3097.7,3097.0,2.07674322]
[1767438211598,2.30178676,3097.6,3097.0,5.30565277]
[1767438212599,5.53011619,3097.6,3097.0,2.07674322]